bitfinex/quotes_ETHUSD_20240823
["timestamp","ask_amount","ask_price","bid_price","bid_amount"]
[1724434700349,0.05,2681.4,2681.3,13.93324976]
[1724434701642,0.05,2681.4,2681.3,17.66277976]
[1724434701843,0.05,2681.4,2681.3,39.26905774]
[1724434702078,0.05,2681.4,2681.3,42.26905774]
[1724434702244,0.05,2681.4,2681.3,25.91043]
[1724434702837,0.05,2681.4,2681.3,22.1809]
[1724434703040,0.05,2681.4,2681.3,25.91043]
[1724434703386,0.05,2681.4,2681.3,22.1809]
[1724434704084,0.05,2681.4,2680.9,0.75669091]
[1724434704085,0.05,2681.4,2681.1,19.84]
[1724434704268,0.05,2681.4,2681.1,23.5698]
[1724434706096,0.05,2681.4,2681.3,3.72953]
[1724434706847,0.05,2681.4,2681.3,7.45906]
[1724434707483,0.05,2681.4,2681.3,9.75686]
[1724434708440,0.05,2681.4,2681.3,6.02733]
[1724434708638,0.05,2681.4,2681.2,19.84]
[1724434708842,0.05,2681.4,2681.3,3.72953]
[1724434709986,0.05,2681.4,2681.3,7.45906]
[1724434710149,0.05,2681.4,2681.3,10.188966]
[1724434710483,0.05,2681.4,2681.3,12.540366]
[1724434710700,0.05,2681.4,2681.3,6.08093]
[1724434711357,0.05,2681.4,2681.3,13.94374976]
[1724434711557,0.00453713,2681.4,2681.3,13.94374976]
[1724434711786,0.00453713,2681.4,2681.3,17.67327976]
[1724434711987,0.00453713,2681.4,2681.3,20.67327976]
[1724434712283,0.00041175,2681.4,2681.3,43.00857891]
[1724434712871,0.00041175,2681.4,2681.3,39.27904891]
[1724434714048,0.00041175,2681.4,2681.3,43.00857891]
[1724434715184,0.00041175,2681.4,2681.3,39.27904891]
[1724434715589,0.00041175,2681.4,2681.3,43.00857891]
[1724434715800,0.00041175,2681.4,2681.3,39.27904891]
[1724434715975,0.00041175,2681.4,2681.3,43.00857891]
[1724434716492,0.00041175,2681.4,2681.3,39.27904891]
[1724434716647,0.00041175,2681.4,2681.3,43.00857891]
[1724434717765,0.00041175,2681.4,2681.3,39.27904891]
[1724434718549,0.00041175,2681.4,2681.3,43.00857891]
[1724434719077,0.00041175,2681.4,2681.3,46.73810891]
[1724434719287,0.00041175,2681.4,2681.3,47.77594145]
[1724434719487,0.05,2681.8,2681.7,13.47531]
[1724434719693,0.05,2681.8,2681.7,42.16904876]
[1724434719892,0.05,2681.8,2681.7,38.44007876]
[1724434720663,0.05,2681.8,2681.7,27.577819]
[1724434720897,0.05,2681.8,2681.7,23.56897]
[1724434721778,0.05,2681.8,2681.7,27.29794]
[1724434722609,0.05,2681.8,2681.7,33.92582976]
[1724434723966,0.05,2681.8,2681.7,37.65479976]
[1724434724162,0.05,2681.8,2681.7,41.39626454]
[1724434724585,0.05,2681.8,2681.7,44.39626454]
[1724434725429,0.05,2681.8,2681.7,23.56897]
[1724434725714,0.05,2681.8,2681.7,27.29794]
[1724434725924,0.05,2681.8,2681.7,23.56897]
[1724434726669,0.05,2681.8,2681.7,27.29794]
[1724434727010,0.05,2681.8,2681.7,33.93072976]
[1724434727208,1e-05,2681.8,2681.7,29.56298275]
[1724434728621,1e-05,2681.8,2681.7,28.97957528]
[1724434728816,1e-05,2681.8,2681.7,29.56290365]
[1724434729174,1e-05,2681.8,2681.7,29.07517284]
[1724434730995,1e-05,2681.8,2681.7,29.56290365]
[1724434731195,3.72634,2683.6,2682.9,2.4855]
[1724434731389,4.02634,2683.6,2683.0,3.72707]
[1724434731915,0.3,2683.6,2683.0,3.72707]
[1724434732236,2.3837,2683.5,2682.8,3.7274]
[1724434732372,2.3837,2683.5,2682.6,3.72766]
[1724434732373,3.72689,2683.3,2682.6,3.72766]
[1724434732567,3.72689,2683.3,2682.7,3.72747]
[1724434732773,3.72683,2683.3,2682.7,3.72747]
[1724434733066,0.55,2683.2,2682.8,3.72742]
[1724434733191,0.55,2683.2,2682.6,3.72765]
[1724434733374,0.427683,2683.1,2682.6,3.72765]
[1724434733573,0.427683,2683.1,2682.8,3.72742]
[1724434733773,0.427683,2683.1,2682.8,3.72734]
[1724434733997,3.99507,2683.4,2682.8,3.72734]
[1724434734197,0.26837,2683.4,2682.8,3.72733]
[1724434734416,4.27676,2683.3,2682.8,3.72733]
[1724434734617,4.27676,2683.3,2682.6,7.45526]
[1724434734790,4.27676,2683.3,2682.7,3.72757]
[1724434735130,0.454513,2683.2,2682.7,3.72757]
[1724434736330,0.454513,2683.2,2682.6,3.72761]
[1724434736807,0.454513,2683.2,2682.7,3.72749]
[1724434739735,0.454513,2683.2,2682.8,3.72737]
[1724434740245,0.454513,2683.2,2682.6,3.72759]
[1724434740445,0.4731273,2683.1,2682.7,3.72755]
[1724434740617,0.4731273,2683.1,2682.6,3.72759]
[1724434740819,0.4731273,2683.1,2682.4,3.72791]
[1724434740820,4.27725,2683.0,2682.4,3.72791]
[1724434741022,0.55,2683.0,2682.6,3.7277]
[1724434741266,0.55,2683.0,2682.7,3.72757]
[1724434741475,0.55,2683.0,2682.6,3.72765]
[1724434742105,0.4731273,2683.1,2682.7,3.72756]
[1724434742947,0.4731273,2683.1,2682.8,3.72743]
[1724434743123,3.72681,2683.3,2682.8,3.72743]
[1724434743328,0.26837,2683.4,2682.9,3.7273]
[1724434743329,0.55,2683.2,2682.9,3.7273]
[1724434743524,0.26837,2683.4,2682.9,3.7273]
[1724434743525,0.55,2683.3,2682.9,3.7273]
[1724434744057,0.55,2683.3,2682.6,3.72763]
[1724434744058,4.27675,2683.3,2682.7,3.75979479]
[1724434744222,0.55,2683.3,2682.8,3.72741]
[1724434744431,0.00272532,2683.8,2683.0,2.3869]
[1724434744744,3.72879532,2683.8,2683.3,3.72674]
[1724434744960,0.00272532,2683.8,2683.5,3.72647]
[1724434745113,0.00272532,2683.8,2683.7,3.72619]
[1724434745466,0.00272532,2683.8,2683.0,2.3869]
[1724434745467,3.72887532,2683.8,2683.0,2.3869]
[1724434745736,3.72621,2683.7,2683.2,3.72676]
[1724434746017,2.44862532,2683.8,2683.3,3.72672]
[1724434746226,6.17475532,2683.8,2683.3,3.72672]
[1724434746406,0.55,2683.7,2683.3,3.72672]
[1724434746920,4.27629,2683.7,2683.1,3.72695]
[1724434747125,3.72656,2683.5,2682.9,3.72717]
[1724434747326,3.72656,2683.5,2682.9,7.4544]
[1724434747624,0.67249153,2683.6,2683.1,3.72695]
[1724434747824,0.55,2683.5,2683.1,3.72695]
[1724434748624,0.55,2683.5,2683.2,3.72686]
[1724434749408,2.44862532,2683.8,2683.7,3.72619]
[1724434749409,0.00272532,2683.8,2683.7,3.72619]
[1724434749604,0.00272532,2683.8,2683.6,3.72624]
[1724434749980,0.00272532,2683.8,2683.7,11.17857]
[1724434750583,0.00272532,2683.8,2683.7,13.63537]
[1724434750778,0.00272532,2683.8,2683.7,16.68705197]
[1724434751639,0.00272532,2683.8,2683.5,19.84]
[1724434752529,0.00272532,2683.8,2683.5,23.56647]
[1724434753178,0.00272532,2683.8,2683.5,19.84]
[1724434753583,0.00272532,2683.8,2683.6,3.72621]
[1724434753878,0.00272532,2683.8,2683.7,3.72619]
[1724434754081,0.00272532,2683.8,2683.7,10.054669]
[1724434754495,0.00272532,2683.8,2683.7,7.45238]
[1724434755194,0.00272532,2683.8,2683.7,7.52688407]
[1724434755525,0.00272532,2683.8,2683.7,7.45238]
[1724434756348,0.00272532,2683.8,2683.5,9.90947]
[1724434756619,0.00272532,2683.8,2683.5,3.72638]
[1724434756820,0.00272532,2683.8,2683.1,6.01715]
[1724434757010,3.72631,2683.7,2683.1,6.01713]
[1724434757208,3.72631,2683.7,2682.7,11.19889327]
[1724434757209,0.00272532,2683.8,2683.7,3.72619]
[1724434757613,0.00272532,2683.8,2683.7,7.45238]
[1724434762226,0.00272532,2683.8,2683.7,13.45967]
[1724434762724,0.00272532,2683.8,2683.7,17.58172812]
[1724434762912,0.00272532,2683.8,2683.7,19.33990093]
[1724434764237,0.00272532,2683.8,2683.7,42.17990093]
[1724434764986,0.00272532,2683.8,2683.7,45.90609093]
[1724434766687,0.00272532,2683.8,2683.7,26.06609093]
[1724434766887,5.32e-06,2683.8,2683.7,26.06609093]
[1724434767136,6.19708,2685.2,2684.0,13.57614]
[1724434767302,6.19708,2685.2,2684.0,17.933754]
[1724434767840,9.92129,2685.2,2684.0,17.933754]
[1724434768264,0.05,2685.9,2684.0,10.482194]
[1724434768556,0.05,2685.9,2685.0,2.3988]
[1724434768557,3.72343,2685.7,2685.0,2.3988]
[1724434768716,3.72357,2685.6,2684.8,3.72458]
[1724434769059,3.72357,2685.6,2684.9,3.72442]
[1724434769060,7.44726,2685.6,2684.9,3.72442]
[1724434769213,7.44726,2685.6,2684.8,3.72458]
[1724434769214,3.72384,2685.4,2685.0,0.7449]
[1724434769409,3.72368,2685.6,2685.0,0.7449]
[1724434769653,3.72373,2685.5,2685.0,0.7449]
[1724434770024,3.72388,2685.4,2685.0,0.7449]
[1724434770644,3.72414,2685.2,2684.0,3.663414]
[1724434770817,3.72467,2684.8,2684.0,6.03145]
[1724434771024,3.72467,2684.8,2684.3,3.72536]
[1724434771219,3.72467,2684.8,2684.2,3.72548]
[1724434771452,3.72488,2684.7,2684.2,3.72542]
[1724434771968,3.72467,2684.8,2684.2,3.72542]
[1724434771969,7.44947,2684.8,2684.2,3.72542]
[1724434772118,3.72467,2684.8,2684.2,7.4508]
[1724434772314,3.72467,2684.8,2684.2,3.72538]
[1724434772563,2.3057,2685.3,2684.3,3.72528]
[1724434772725,3.72453,2684.9,2684.3,3.72528]
[1724434772918,3.72474,2684.8,2684.3,3.72528]
[1724434773131,3.72453,2684.9,2684.3,7.45053]
[1724434773344,3.7243,2685.1,2684.5,3.72508]
[1724434773549,0.67243,2685.0,2684.5,3.725]
[1724434773747,3.72428,2685.1,2684.3,2.3527]
[1724434774046,3.72212,2686.7,2685.1,2.4952]
[1724434774373,6.07055,2686.8,2685.9,3.72314]
[1724434774668,6.07055,2686.8,2685.2,1.88754335]
[1724434774669,3.7233,2685.8,2684.9,3.7244]
[1724434774873,3.7233,2685.8,2684.7,4.12205812]
[1724434775024,3.72337,2685.8,2685.1,6.21939]
[1724434775229,6.1996692,2686.0,2685.3,3.72389]
[1724434775537,3.0,2685.9,2685.3,3.72389]
[1724434776275,6.72324,2685.9,2685.3,3.72389]
[1724434777182,6.81963612,2686.0,2685.1,6.21936]
[1724434777183,0.1280092,2686.0,2685.4,3.72378]
[1724434777386,3.8511192,2686.0,2685.2,3.72408]
[1724434777686,4.23623112,2686.0,2685.2,3.72408]
[1724434778448,3.72331,2685.8,2685.2,7.44803]
[1724434778653,7.95935112,2686.0,2685.2,3.72401]
[1724434778864,4.23623112,2686.0,2685.4,3.72374]
[1724434779063,4.23623112,2686.0,2685.4,7.44748]
[1724434779397,0.1280092,2686.0,2685.9,7.44628]
[1724434779562,0.1280092,2686.0,2685.6,3.72355]
[1724434779766,0.1280092,2686.0,2685.7,3.72341]
[1724434780465,0.1280092,2686.0,2685.6,3.72347]
[1724434780663,0.1280092,2686.0,2685.6,7.44694]
[1724434781176,0.1280092,2686.0,2685.7,3.72341]
[1724434781380,0.1280092,2686.0,2685.8,3.72323]
[1724434781849,0.1280092,2686.0,2685.9,7.44628]
[1724434782189,0.1280092,2686.0,2685.9,3.72314]
[1724434783198,0.1280092,2686.0,2685.9,7.44628]
[1724434783449,0.1280092,2686.0,2685.9,9.73928]
[1724434784152,0.1280092,2686.0,2685.9,13.46242]
[1724434784652,0.1280092,2686.0,2685.9,7.362382]
[1724434784853,0.1280092,2686.0,2685.5,6.06745]
[1724434785175,0.1280092,2686.0,2685.5,9.79103]
[1724434785475,0.1280092,2686.0,2685.6,23.56351]
[1724434785951,0.1280092,2686.0,2685.7,3.72334]
[1724434786129,0.1280092,2686.0,2685.8,3.72324]
[1724434786330,0.1280092,2686.0,2685.8,6.451898]
[1724434786944,0.1280092,2686.0,2685.8,3.72328]
[1724434788525,0.1280092,2686.0,2685.7,3.72341]
[1724434788761,0.1280092,2686.0,2685.8,3.7232]
[1724434789062,0.09567441,2686.0,2685.8,3.7232]
[1724434790921,0.09567441,2686.0,2685.7,3.72333]
[1724434791160,0.09567441,2686.0,2685.5,3.72362]
[1724434791338,0.09567441,2686.0,2685.6,3.72354]
[1724434791775,0.09567441,2686.0,2685.8,2.2958]
[1724434792070,0.09567441,2686.0,2685.9,11.16942]
[1724434792280,0.09567441,2686.0,2685.9,13.47412]
[1724434792432,0.09567441,2686.0,2685.9,20.70604939]
[1724434792941,0.09567441,2686.0,2685.9,21.07984939]
[1724434793274,4.41e-06,2686.0,2685.9,23.73681523]
[1724434793467,2.4326,2687.5,2686.0,2.3047]
[1724434793667,7.44288,2687.2,2686.6,3.72213]
[1724434793889,2.4326,2687.5,2686.4,3.72236]
[1724434793890,3.72162,2687.0,2686.4,3.72236]
[1724434794455,3.72178,2686.9,2686.4,3.72236]
[1724434794675,3.72178,2686.9,2686.0,2.6785]
[1724434794676,3.209747,2686.9,2686.1,3.72278]
[1724434794897,2.4654,2686.9,2686.1,7.44556]
[1724434795104,3.72198,2686.8,2686.2,3.72268]
[1724434795244,3.72198,2686.8,2686.1,3.72278]
[1724434795594,3.72212,2686.7,2686.1,3.72278]
[1724434795828,3.72198,2686.8,2686.1,3.72278]
[1724434796007,7.44396,2686.8,2686.1,7.44552]
[1724434796289,4.340718,2686.8,2686.2,3.72264]
[1724434796495,8.062708,2686.8,2686.2,3.72264]
[1724434796678,3.72239,2686.5,2685.9,3.72301]
[1724434797002,3.047557,2686.4,2685.8,3.72324]
[1724434797217,3.72262,2686.3,2685.8,3.72324]
[1724434797495,3.72291,2686.1,2685.6,3.72343]
[1724434797695,6.02566,2686.4,2685.6,3.72343]
[1724434797902,6.628226,2686.4,2685.6,3.72343]
[1724434798060,3.72259,2686.3,2685.8,3.72327]
[1724434798268,3.72226,2686.6,2686.0,3.72293]
[1724434798490,7.44452,2686.6,2686.0,3.72293]
[1724434798832,3.72226,2686.6,2686.0,3.72293]
[1724434799120,2.3031,2686.7,2686.2,3.72265]
[1724434799831,2.3031,2686.7,2686.2,7.44529]
[1724434800132,7.44399,2686.8,2686.2,3.72264]
[1724434800425,3.72212,2686.7,2686.2,3.72264]
[1724434800813,3.7218,2686.9,2686.3,3.72251]
[1724434801135,5.9816,2687.0,2686.4,3.72245]
[1724434801437,3.72179,2686.9,2686.4,3.72245]
[1724434801731,3.72227,2686.6,2686.1,19.84]
[1724434802032,3.72196,2686.8,2686.2,3.72265]
[1724434802280,9.70334,2687.0,2686.4,3.72236]
[1724434802558,3.72184,2686.9,2686.3,3.72255]
[1724434802721,5.98158,2687.0,2686.1,19.84]
[1724434802722,3.72212,2686.7,2686.1,19.84]
[1724434802922,5.98156,2687.0,2686.3,3.72248]
[1724434803330,3.72178,2686.9,2686.4,3.72242]
[1724434803948,7.44392,2686.8,2686.2,3.7226]
[1724434804122,7.4439,2686.8,2686.2,3.7226]
[1724434804643,7.44389,2686.8,2686.2,3.7226]
[1724434804849,5.98159,2687.0,2686.2,3.7226]
[1724434805164,3.72142,2687.2,2686.6,3.72213]
[1724434805321,3.72142,2687.2,2686.5,19.84]
[1724434805322,3.72175,2687.0,2686.5,19.84]
[1724434805520,0.986206,2687.2,2686.5,19.84]
[1724434805521,3.72204,2686.7,2686.5,19.84]
[1724434805732,3.72177,2686.9,2686.5,19.84]
[1724434805959,3.72151,2687.1,2686.5,19.84]
[1724434806354,6.14071,2687.3,2686.6,7.44418]
[1724434806665,3.72135,2687.2,2686.7,3.72202]
[1724434806866,6.14071,2687.3,2686.7,3.72202]
[1724434807234,3.72137,2687.2,2686.7,3.72202]
[1724434807576,3.72156,2687.1,2686.5,19.84]
[1724434807863,3.72198,2686.8,2686.5,19.84]
[1724434808045,3.72177,2686.9,2686.5,19.84]
[1724434808251,7.44362,2686.9,2686.5,19.84]
[1724434808418,3.72177,2686.9,2686.5,19.84]
[1724434808626,3.72191,2686.8,2686.5,19.84]
[1724434808835,3.72217,2686.6,2686.5,19.84]
[1724434809160,2.4591,2686.8,2686.2,3.7226]
[1724434809360,3.0,2687.5,2686.5,3.72221]
[1724434809361,3.72156,2687.1,2686.5,3.72221]
[1724434809573,0.372156,2687.1,2686.6,2.4631]
[1724434809725,3.72162,2687.1,2686.3,3.7225]
[1724434810073,3.72164,2687.0,2686.5,3.72227]
[1724434810269,3.72162,2687.1,2686.5,3.72227]
[1724434810470,3.72169,2687.0,2686.5,3.72227]
[1724434810779,3.7216,2687.1,2686.3,6.04347]
[1724434810780,3.72176,2686.9,2686.3,6.04347]
[1724434811123,3.72176,2686.9,2686.4,3.72236]
[1724434811328,3.72204,2686.7,2686.3,2.321]
[1724434811574,3.72222,2686.6,2686.1,3.72279]
[1724434811774,3.72172,2687.0,2686.4,3.72237]
[1724434811987,3.72201,2686.8,2686.2,3.72262]
[1724434812464,3.72201,2686.8,2686.2,23.56262]
[1724434812966,3.72234,2686.5,2686.2,19.84]
[1724434815181,3.72267,2686.3,2685.9,7.43902848]
[1724434815495,3.72287,2686.1,2685.6,25.88383]
[1724434815631,3.72287,2686.1,2685.5,7.43902848]
[1724434815632,3.72302,2686.0,2685.5,7.43902848]
[1724434815831,3.72224,2686.6,2685.6,2.3204]
[1724434816076,6.00579,2686.9,2686.0,6.04332]
[1724434816230,6.906369,2686.9,2686.0,2.924732]
[1724434816429,4.622369,2686.9,2686.2,3.72262]
[1724434816692,0.900579,2686.9,2686.5,3.72221]
[1724434816984,4.622349,2686.9,2686.4,3.72241]
[1724434817126,3.72197,2686.8,2686.2,3.72269]
[1724434817330,4.8564019,2686.8,2686.1,3.72278]
[1724434817574,3.72197,2686.8,2686.2,3.72263]
[1724434818094,3.72067,2687.7,2687.1,3.7214]
[1724434818227,3.72067,2687.7,2686.9,6.09256]
[1724434818429,3.72095,2687.5,2686.9,2.3709]
[1724434818727,2.3302,2687.8,2686.6,6.09306]
[1724434818728,3.72122,2687.3,2686.6,6.09306]
[1724434818932,3.7215,2687.1,2686.6,6.09306]
[1724434819196,3.7215,2687.1,2686.6,2.3709]
[1724434819897,3.71903,2688.9,2686.2,3.72268]
[1724434820037,3.71903,2688.9,2686.1,5.48980904]
[1724434820038,3.72014,2688.1,2687.5,3.72085]
[1724434821233,3.72024,2688.0,2687.4,5.9848]
[1724434821563,3.72007,2688.2,2687.4,5.98478]
[1724434821564,7.44015,2688.2,2687.4,5.98478]
[1724434821765,7.44015,2688.2,2687.6,3.72078]
[1724434821986,3.76945,2688.6,2688.3,3.71972]
[1724434821987,0.05,2688.6,2688.3,3.71972]
[1724434822148,0.05,2688.6,2688.3,2.3697]
[1724434822467,0.05,2688.6,2687.7,7.28473273]
[1724434822468,3.76944,2688.6,2688.0,2.3697]
[1724434822632,4.15918492,2688.6,2688.0,6.08984]
[1724434822832,3.76944,2688.6,2688.0,6.08984]
[1724434823286,0.05,2688.6,2688.0,6.08986]
[1724434823491,0.05,2688.6,2688.3,3.71972]
[1724434824234,0.05,2688.6,2688.3,3.71978]
[1724434824478,0.05,2688.6,2688.2,3.71989]
[1724434824696,0.05,2688.6,2688.3,0.743987]
[1724434825397,3.71962,2688.5,2688.0,2.3697]
[1724434825603,0.05,2688.6,2688.5,3.71954]
[1724434825882,0.05,2688.6,2688.5,5.97714]
[1724434826448,0.05,2688.6,2688.5,2.2576]
[1724434826666,0.05,2688.6,2688.1,2.3059]
[1724434826832,3.71963,2688.5,2688.1,2.3059]
[1724434827033,3.71955,2688.5,2688.1,2.3059]
[1724434827248,0.05,2688.6,2687.7,2.3059]
[1724434827552,0.05,2688.6,2688.2,3.71992]
[1724434827747,0.05,2688.6,2688.3,0.371992]
[1724434828152,0.05,2688.6,2688.0,3.72015]
[1724434828346,3.71955,2688.5,2687.9,3.72036]
[1724434828565,3.71955,2688.5,2687.8,3.72045]
[1724434829076,3.71955,2688.5,2687.9,3.72025]
[1724434829263,3.71999,2688.2,2687.4,6.707008]
[1724434829654,3.72024,2688.0,2687.4,6.10853]
[1724434829836,3.71999,2688.2,2687.4,6.10845]
[1724434830664,3.72036,2688.0,2687.4,6.10853]
[1724434830880,3.72005,2688.2,2687.4,6.10853]
[1724434831049,3.7201,2688.1,2687.4,6.10845]
[1724434831377,3.72023,2688.0,2687.5,0.610845]
[1724434831684,3.72037,2687.9,2687.2,3.72129]
[1724434831980,3.72037,2687.9,2687.2,3.7213]
[1724434832299,3.72037,2687.9,2687.1,2.4994]
[1724434832300,3.72066,2687.7,2687.1,2.4994]
[1724434832776,3.72079,2687.6,2687.1,2.4994]
[1724434832983,3.72079,2687.6,2687.1,22.3394]
[1724434833142,3.72066,2687.7,2687.2,2.606089]
[1724434833339,3.72066,2687.7,2686.5,6.22168]
[1724434833340,3.72115,2687.4,2686.5,6.22168]
[1724434833561,0.55,2687.6,2686.5,2.4994]
[1724434833768,3.72163,2687.0,2686.5,2.4994]
[1724434834212,3.72176,2686.9,2686.5,2.4994]
[1724434834736,3.72208,2686.7,2686.2,2.2631]
[1724434834884,3.72192,2686.8,2686.2,3.3318092]
[1724434834885,3.72219,2686.6,2686.2,3.3318092]
[1724434835071,3.72219,2686.6,2686.0,0.604332]
[1724434835399,3.72213,2686.7,2686.0,0.604332]
[1724434835703,3.72213,2686.7,2686.0,4.327332]
[1724434835911,3.7222,2686.6,2686.0,4.327332]
[1724434836124,3.72192,2686.8,2686.1,3.79724712]
[1724434836333,7.44394,2686.8,2686.2,0.44015791]
[1724434836484,3.72192,2686.8,2686.2,0.44015791]
[1724434836897,3.72218,2686.6,2686.0,0.604332]
[1724434837123,7.44447,2686.6,2686.0,0.604332]
[1724434837424,3.72247,2686.4,2686.0,0.604332]
[1724434837721,3.72247,2686.4,2685.9,2.2631]
[1724434837921,7.44503,2686.4,2685.9,2.2631]
[1724434838150,3.7226,2686.3,2685.9,2.2631]
[1724434838355,3.72274,2686.2,2685.9,2.2631]
[1724434838931,3.72218,2686.6,2686.0,3.72298]
[1724434839148,3.72218,2686.6,2686.1,0.598608]
[1724434839483,3.72194,2686.8,2686.0,19.84]
[1724434839853,3.72274,2686.2,2686.0,19.84]
[1724434840010,7.44559,2686.2,2686.0,19.84]
[1724434840328,3.72286,2686.1,2686.0,19.84]
[1724434840513,3.72286,2686.1,2685.6,19.84]
[1724434840717,3.72286,2686.1,2685.7,3.33682585]
[1724434840896,3.72274,2686.2,2685.6,23.56356]
[1724434841715,3.72288,2686.1,2685.6,19.84]
[1724434841919,3.72301,2686.0,2685.6,19.84]
[1724434842127,7.44613,2686.0,2685.5,9.80462848]
[1724434842432,3.72319,2685.9,2685.5,7.43902848]
[1724434842601,3.72301,2686.0,2685.4,23.56383]
[1724434842801,3.72301,2686.0,2685.5,3.74146478]
[1724434843334,7.44564,2686.2,2685.5,3.74146478]
[1724434843491,3.72253,2686.4,2685.7,3.72333]
[1724434843710,3.72222,2686.6,2685.8,2.51925248]
[1724434843913,3.72195,2686.8,2686.2,3.72267]
[1724434844152,3.72195,2686.8,2686.1,3.72276]
[1724434844370,3.72206,2686.7,2686.1,3.72276]
[1724434844970,3.72247,2686.4,2685.9,3.72311]
[1724434845130,3.72301,2686.0,2685.5,2.4448]
[1724434845653,3.72301,2686.0,2685.5,6.16847]
[1724434845818,3.72301,2686.0,2685.6,0.616847]
[1724434846657,3.72277,2686.2,2685.6,0.616847]
[1724434847165,7.44508,2686.4,2685.6,0.616847]
[1724434847463,3.72226,2686.6,2685.5,2.4448]
[1724434847610,3.72233,2686.5,2685.5,2.4448]
[1724434847813,3.72233,2686.5,2685.6,0.07444875]
[1724434848082,2.2922,2687.2,2685.7,2.4997]
[1724434848373,2.2922,2687.6,2686.5,2.4997]
[1724434848655,3.72178,2686.9,2686.2,6.22239]
[1724434848881,3.72151,2687.1,2686.2,6.22239]
[1724434849017,3.72151,2687.1,2686.4,3.72243]
[1724434849381,3.72205,2686.7,2686.0,3.72295]
[1724434849517,3.72241,2686.5,2685.8,3.72318]
[1724434849885,3.72241,2686.5,2685.9,0.622288]
[1724434850359,3.72183,2686.9,2685.9,0.622288]
[1724434850654,2.2922,2687.0,2685.9,0.622288]
[1724434850655,3.72191,2686.8,2686.1,3.72281]
[1724434851216,3.72191,2686.8,2686.3,2.4402]
[1724434851422,3.72191,2686.8,2686.3,2.51464209]
[1724434851733,3.72173,2687.0,2686.3,2.51464209]
[1724434852131,3.72173,2687.0,2686.3,6.23721209]
[1724434852743,3.7219,2686.8,2686.3,2.4402]
[1724434854278,3.7219,2686.8,2686.3,3.056494]
[1724434854480,3.72141,2687.2,2686.3,3.056494]
[1724434854682,6.72152,2687.1,2686.4,0.07444217]
[1724434854989,3.72162,2687.0,2686.3,6.1627]
[1724434855189,3.72193,2686.8,2686.3,2.4402]
[1724434855491,7.44395,2686.8,2686.3,3.056494]
[1724434855661,3.72206,2686.7,2686.3,3.056494]
[1724434855867,3.72193,2686.8,2686.0,23.56291]
[1724434855868,3.72223,2686.6,2686.0,19.84]
[1724434856268,3.72246,2686.4,2686.0,19.84]
[1724434856812,3.0,2687.1,2686.1,0.07444904]
[1724434857092,2.2937,2687.3,2686.3,2.478]
[1724434857093,5.2937,2687.3,2686.3,2.478]
[1724434857302,3.72082,2687.6,2686.5,2.478]
[1724434857515,3.72133,2687.3,2686.6,3.72215]
[1724434857806,3.72143,2687.2,2686.6,3.72215]
[1724434857947,3.72158,2687.1,2686.5,6.2003]
[1724434859968,3.72111,2687.4,2686.4,0.620065]
[1724434860167,3.72246,2686.4,2686.1,2.478]
[1724434860425,3.72246,2686.4,2685.8,6.16394]
[1724434860924,3.72246,2686.4,2685.8,6.16388]
[1724434861064,3.7222,2686.6,2685.8,7.152619]
[1724434861908,3.7222,2686.6,2686.0,3.72287]
[1724434862278,3.7222,2686.6,2686.0,7.44577]
[1724434862512,3.72193,2686.8,2686.2,3.72268]
[1724434862791,6.72157,2687.1,2686.4,6.01816]
[1724434862996,7.765868,2687.1,2686.4,6.01815]
[1724434863216,4.765868,2687.1,2686.4,6.01815]
[1724434863375,3.72134,2687.2,2686.6,3.72208]
[1724434863919,3.72121,2687.3,2686.6,3.72208]
[1724434864094,3.0,2687.2,2686.4,2.2958]
[1724434864297,3.7219,2686.8,2686.4,2.2958]
[1724434864932,3.0,2687.4,2686.5,0.07444016]
[1724434865067,2.2508,2687.8,2686.9,3.72165]
[1724434865272,2.2508,2687.8,2686.6,2.449]
[1724434865273,3.72104,2687.5,2686.7,3.72199]
[1724434865540,3.72131,2687.3,2686.7,3.72199]
[1724434865670,3.72131,2687.3,2686.8,0.617099]
[1724434866178,7.4421,2687.5,2686.9,3.72175]
[1724434866402,3.72108,2687.4,2686.8,0.617099]
[1724434866731,6.7203,2688.0,2687.3,3.72119]
[1724434866732,3.72041,2687.9,2687.3,3.72119]
[1724434867029,3.72066,2687.7,2687.1,3.72143]
[1724434867327,3.72103,2687.5,2687.0,2.3356]
[1724434867698,3.0,2687.8,2687.2,3.72132]
[1724434867915,3.0,2687.8,2687.2,4.21201195]
[1724434868119,3.72093,2687.5,2687.0,2.3356]
[1724434868325,2.4041,2688.4,2686.9,7.91680904]
[1724434868494,3.72075,2687.7,2687.0,3.72149]
[1724434868694,3.72089,2687.6,2687.0,4.7702339]
[1724434868884,3.72102,2687.5,2686.9,2.427]
[1724434869089,3.72102,2687.5,2686.9,6.14875]
[1724434869325,3.72116,2687.4,2686.9,2.427]
[1724434869525,7.44207,2687.5,2686.9,2.427]
[1724434869727,3.72102,2687.5,2686.9,2.427]
[1724434869930,3.72115,2687.4,2686.9,2.427]
[1724434870629,3.72033,2688.0,2686.9,2.427]
[1724434870630,3.7206,2687.8,2687.2,2.2514]
[1724434870827,9.33720824,2688.7,2686.5,0.373]
[1724434870828,3.71996,2688.2,2687.6,3.72075]
[1724434870990,0.1280092,2688.7,2687.7,2.2514]
[1724434871190,3.71978,2688.4,2687.8,3.7205]
[1724434872334,3.76947,2688.6,2687.9,2.36]
[1724434872536,3.76947,2688.6,2688.2,3.71984]